bitfinex/quotes_ETHUSD_20240719
["timestamp","ask_amount","ask_price","bid_price","bid_amount"]
[1721356197367,2.42987737,3422.4,3422.1,5.84429]
[1721356197571,2.42987737,3422.4,3422.2,3.0]
[1721356197971,2.42987737,3422.4,3422.2,5.92209]
[1721356200185,2.42987737,3422.4,3422.2,3.0]
[1721356200398,3.83269021,3422.4,3421.9,2.92233]
[1721356200596,1.047,3422.2,3421.4,2.92271]
[1721356200891,2.3131,3422.1,3421.5,10.32268]
[1721356201255,2.3131,3422.1,3421.5,2.92268]
[1721356201787,2.3131,3422.1,3421.1,8.447]
[1721356201788,2.4211,3421.7,3421.1,10.32302]
[1721356201971,2.4211,3421.7,3420.7,3.5194]
[1721356201972,1.047,3421.6,3421.0,2.9231]
[1721356202158,2.4211,3421.7,3421.0,2.9231]
[1721356202891,2.4211,3421.7,3421.1,2.923]
[1721356203099,2.4211,3421.7,3421.4,2.92275]
[1721356205859,2.2874,3422.3,3421.5,2.92268]
[1721356206991,2.2874,3422.3,3421.5,3.96968]
[1721356207694,2.2874,3422.3,3421.5,2.92268]
[1721356207905,0.62828174,3422.2,3421.5,2.92268]
[1721356208110,1.67528174,3422.2,3421.5,2.92268]
[1721356208900,1.047,3422.0,3421.3,2.92284]
[1721356209125,1.047,3422.0,3421.4,3.0]
[1721356210715,0.62828174,3422.2,3421.1,7.4]
[1721356210716,3.9695,3421.8,3421.1,7.4]
[1721356211374,2.487,3421.7,3421.1,7.4]
[1721356213293,2.487,3421.7,3421.0,2.92312]
[1721356213495,2.487,3421.7,3421.1,3.0]
[1721356217825,0.02607426,3421.6,3421.1,3.0]
[1721356218025,2.3749,3421.5,3420.7,7.4]
[1721356218226,2.92206,3422.3,3420.7,7.4]
[1721356218227,2.3749,3421.2,3420.7,7.4]
[1721356218532,0.02601312,3421.1,3420.7,7.4]
[1721356219908,3.5301,3421.0,3420.7,7.4]
[1721356220094,3.5301,3421.0,3420.2,13.32379]
[1721356220095,1.047,3420.8,3420.2,13.32379]
[1721356220290,2.3594,3420.7,3420.2,7.4]
[1721356220608,1.07461401,3420.6,3420.2,7.4]
[1721356221224,3.3407,3420.4,3419.8,7.4]
[1721356221530,1.047,3420.2,3419.4,10.32444]
[1721356221894,2.92372,3420.3,3419.5,1.047]
[1721356222325,2.92372,3420.3,3419.4,10.32444]
[1721356223044,2.92372,3420.3,3419.5,3.0]
[1721356223920,2.92372,3420.3,3419.5,5.92439]
[1721356238268,2.92381,3420.2,3419.5,3.0]
[1721356239713,2.4096,3420.1,3419.5,3.0]
[1721356241600,2.4096,3420.1,3419.5,5.9244]
[1721356244405,2.4096,3420.1,3419.5,6.9724]
[1721356245867,2.4096,3420.1,3419.5,4.048]
[1721356246069,3.4576,3420.1,3419.4,7.4]
[1721356246297,2.3849,3419.8,3419.4,7.4]
[1721356246565,5.30905,3419.8,3419.4,7.4]
[1721356249423,2.4595,3419.6,3419.4,7.4]
[1721356249568,2.4595,3419.6,3418.8,13.32494]
[1721356249769,5.38382,3419.6,3418.9,0.55]
[1721356250083,5.38382,3419.6,3418.8,13.32494]
[1721356250084,2.92449,3419.4,3418.8,7.4]
[1721356250270,2.4595,3419.3,3418.8,7.4]
[1721356250775,2.4595,3419.3,3418.8,8.448]
[1721356250994,2.4595,3419.3,3418.8,11.373]
[1721356251324,3.859917,3419.6,3419.1,2.92474]
[1721356251325,2.4061,3419.6,3419.1,2.92474]
[1721356251470,2.4061,3419.6,3419.0,1.048]
[1721356253690,2.4061,3419.6,3418.9,2.92485]
[1721356253887,2.4061,3419.6,3418.8,11.373]
[1721356253888,2.4061,3419.6,3419.0,2.92482]
[1721356254910,2.4061,3419.6,3418.8,11.37294]
[1721356255207,2.4061,3419.6,3418.9,0.55]
[1721356255563,2.92441,3419.5,3418.8,7.4]
[1721356255807,2.4885,3419.2,3418.8,7.4]
[1721356257012,2.4885,3419.2,3418.8,10.32498]
[1721356257184,2.4885,3419.2,3418.8,7.4]
[1721356257385,2.4885,3419.5,3418.8,10.32499]
[1721356258467,2.4885,3419.5,3418.9,3.97288]
[1721356260204,2.4885,3419.5,3419.0,2.92482]
[1721356263319,2.4885,3419.5,3419.1,2.92469]
[1721356263533,2.4852,3420.2,3419.3,2.9245]
[1721356263815,2.4852,3420.2,3419.2,0.292469]
[1721356263816,2.4852,3420.2,3419.8,2.92414]
[1721356265078,2.92331,3420.8,3419.6,2.92431]
[1721356265079,2.2907,3420.5,3419.9,2.92405]
[1721356266128,2.2907,3420.5,3419.8,2.9241]
[1721356267316,3.104457,3420.5,3419.8,2.9241]
[1721356268125,3.104457,3420.5,3419.6,2.92431]
[1721356268339,3.104457,3420.5,3419.7,0.55]
[1721356269312,6.028017,3420.5,3419.7,0.55]
[1721356269510,2.2911,3420.4,3419.7,0.55]
[1721356270401,5.21474,3420.4,3419.7,0.55]
[1721356270624,6.1099277,3420.4,3419.7,0.55]
[1721356271638,3.1862877,3420.4,3419.7,3.47422]
[1721356271827,2.2911,3420.4,3419.8,2.92414]
[1721356274748,2.2911,3420.4,3419.7,0.55]
[1721356275256,2.2911,3420.4,3419.7,3.4742]
[1721356275411,2.2911,3420.4,3419.8,2.92413]
[1721356276629,2.2911,3420.4,3419.7,0.55]
[1721356277516,2.812566,3420.4,3419.7,0.55]
[1721356277711,2.92372,3420.3,3419.6,0.55]
[1721356277921,2.3868,3420.2,3419.6,0.55]
[1721356278120,2.92389,3420.1,3419.5,7.4]
[1721356278345,2.3868,3420.2,3419.5,7.4]
[1721356278652,6.35541,3420.2,3419.5,7.4]
[1721356280226,7.40341,3420.2,3419.5,7.4]
[1721356281256,1.048,3420.0,3419.5,7.4]
[1721356281463,1.048,3419.8,3419.5,7.4]
[1721356281623,3.9722,3419.8,3418.9,12.74861]
[1721356281959,4.613093,3419.8,3418.9,12.74861]
[1721356282117,4.613093,3419.8,3418.9,13.79661]
[1721356283224,4.613093,3419.8,3419.0,3.0]
[1721356283630,2.92427,3419.7,3419.0,3.0]
[1721356283931,3.4849,3419.6,3418.9,10.32491]
[1721356284573,3.4849,3419.6,3418.9,2.92491]
[1721356284973,6.40921,3419.6,3418.9,2.92491]
[1721356285335,2.4369,3419.6,3418.9,3.97291]
[1721356285749,2.4369,3419.6,3418.9,2.92491]
[1721356287966,2.4369,3419.6,3418.9,3.97291]
[1721356289078,5.36122,3419.6,3418.9,2.92491]
[1721356291551,2.2538,3419.3,3418.7,1.048]
[1721356291752,2.2538,3419.3,3418.7,4.048]
[1721356293478,5.17837,3419.3,3418.7,3.0]
[1721356293873,1.048,3419.0,3418.6,7.4]
[1721356294243,5.38737,3418.9,3418.6,7.4]
[1721356294444,2.92504,3418.8,3418.6,7.4]
[1721356295761,2.4624,3418.9,3418.6,7.4]
[1721356295762,2.92508,3418.7,3418.6,7.4]
[1721356296277,3.861111,3418.7,3418.6,7.4]
[1721356299212,0.936031,3418.7,3418.6,7.4]
[1721356299509,3.248131,3418.7,3418.0,2.92565]
[1721356299683,2.3121,3418.7,3418.0,2.92565]
[1721356301170,5.23721,3418.7,3417.8,10.32584]
[1721356301370,1.048,3418.6,3417.9,3.47576]
[1721356302885,5.23721,3418.7,3417.9,3.47576]
[1721356303188,5.23721,3418.7,3417.9,4.52376]
[1721356303594,5.23721,3418.7,3417.9,3.47576]
[1721356303995,3.3771,3418.6,3417.8,7.4]
[1721356304195,3.97335,3418.4,3417.8,7.4]
[1721356304377,2.3291,3418.3,3417.8,7.4]
[1721356305535,5.25456,3418.3,3417.8,7.4]
[1721356305672,2.3291,3418.3,3417.8,7.4]
[1721356307203,2.92472,3419.2,3418.1,2.92558]
[1721356307523,1.048,3419.1,3418.2,1.048]
[1721356307674,2.92472,3419.2,3418.3,2.92536]
[1721356307875,2.446,3419.4,3418.4,3.97326]
[1721356308104,2.446,3419.4,3418.7,2.92507]
[1721356309616,2.446,3419.4,3418.5,2.9252]
[1721356309790,2.446,3419.4,3418.6,2.92517]
[1721356310307,2.92458,3419.3,3418.4,2.92526]
[1721356312510,1.692344,3420.4,3419.4,2.92443]
[1721356312714,1.692344,3420.4,3419.6,2.9243]
[1721356313006,1.692344,3420.4,3419.8,2.92413]
[1721356313184,1.692344,3420.4,3419.9,2.92399]
[1721356313777,1.692344,3420.4,3419.5,2.92431]
[1721356313778,1.692344,3420.4,3419.7,2.92415]
[1721356314219,1.692344,3420.4,3419.8,2.9241]
[1721356314616,1.692344,3420.4,3420.0,2.92397]
[1721356315004,1.692344,3420.4,3419.8,2.9241]
[1721356315514,1.692344,3420.4,3419.9,2.92404]
[1721356316696,1.692344,3420.4,3420.0,2.92396]
[1721356321430,1.692344,3420.4,3420.1,2.92381]
[1721356321794,1.692344,3420.4,3420.0,2.92396]
[1721356321995,1.692344,3420.4,3419.8,2.92413]
[1721356322602,1.692344,3420.4,3419.9,2.92405]
[1721356324939,1.692344,3420.4,3420.0,2.92396]
[1721356329032,1.692344,3420.4,3419.8,2.92414]
[1721356329431,1.692344,3420.4,3420.0,2.92396]
[1721356331441,4.116044,3420.4,3419.8,2.92414]
[1721356333547,4.116044,3420.4,3419.6,10.32431]
[1721356333548,7.039684,3420.4,3419.6,10.32431]
[1721356333861,0.9963164,3420.3,3419.6,10.32431]
[1721356334941,0.9963164,3420.3,3419.7,2.92421]
[1721356335130,4.116044,3420.4,3419.7,2.92421]
[1721356341466,4.399222,3420.4,3419.7,2.92421]
[1721356346339,5.447222,3420.4,3419.7,2.92421]
[1721356350060,4.399222,3420.4,3419.8,2.92414]
[1721356350261,1.975522,3420.4,3420.0,1.048]
[1721356350473,1.975522,3420.4,3420.1,2.92383]
[1721356354284,1.975522,3420.4,3419.9,2.92404]
[1721356354508,1.975522,3420.4,3420.0,3.47395]
[1721356358006,1.975522,3420.4,3419.9,2.92404]
[1721356358436,2.3776,3420.2,3419.6,7.4]
[1721356358617,2.92406,3419.9,3419.6,7.4]
[1721356358950,0.1975522,3420.3,3419.0,10.32482]
[1721356358951,5.3018,3419.8,3419.0,10.32482]
[1721356359325,2.92424,3419.7,3419.0,7.4]
[1721356360044,5.30175,3419.8,3419.0,7.4]
[1721356360827,5.30175,3419.8,3419.0,10.32481]
[1721356365009,2.3776,3419.8,3419.1,2.92473]
[1721356365209,2.3776,3419.8,3419.4,2.92448]
[1721356366443,2.2559,3420.1,3419.4,2.92448]
[1721356366819,2.2559,3420.1,3419.5,2.92439]
[1721356367366,4.231422,3420.4,3419.6,3.47431]
[1721356367723,4.231422,3420.4,3419.9,2.92405]
[1721356367946,1.975522,3420.4,3419.9,2.92405]
[1721356368149,1.975522,3420.4,3419.7,2.92421]
[1721356368150,1.975522,3420.4,3420.0,2.92396]
[1721356368332,1.975522,3420.4,3419.7,2.92421]
[1721356368333,1.975522,3420.4,3419.8,2.92409]
[1721356368951,1.975522,3420.4,3419.9,2.92405]
[1721356370273,2.3869,3420.3,3419.7,2.92421]
[1721356370472,2.3869,3420.3,3419.8,0.55]
[1721356370817,2.3869,3420.3,3419.8,3.47413]
[1721356371249,2.3869,3420.3,3419.8,0.55]
[1721356372324,2.3869,3420.3,3419.8,3.47413]
[1721356373624,2.3869,3420.3,3419.8,0.55]
[1721356373842,2.3869,3420.3,3419.7,3.47422]
[1721356375867,1.975522,3420.4,3419.7,3.47422]
[1721356376080,1.975522,3420.4,3419.8,2.92413]
[1721356376362,1.975522,3420.4,3420.0,2.92395]
[1721356376564,1.975522,3420.4,3420.1,2.92386]
[1721356377341,1.975522,3420.4,3419.9,2.92405]
[1721356377664,1.975522,3420.4,3420.0,0.55]
[1721356377865,1.975522,3420.4,3420.0,3.47397]
[1721356380880,1.975522,3420.4,3420.0,0.55]
[1721356381058,1.975522,3420.4,3419.9,0.55]
[1721356382761,1.975522,3420.4,3419.9,3.47405]
[1721356385961,1.975522,3420.4,3420.0,2.92397]
[1721356387070,1.975522,3420.4,3420.1,3.47388]
[1721356387769,1.975522,3420.4,3419.9,2.92406]
[1721356387972,1.975522,3420.4,3420.0,0.55]
[1721356388207,1.975522,3420.4,3419.7,2.92417]
[1721356388395,1.975522,3420.4,3419.8,3.0]
[1721356388570,4.899152,3420.4,3419.8,3.0]
[1721356389671,1.975522,3420.4,3419.8,5.92414]
[1721356390480,1.975522,3420.4,3419.8,3.0]
[1721356390692,1.975522,3420.4,3419.6,2.92426]
[1721356390693,2.92474,3419.1,3418.8,10.35196029]
[1721356390902,2.92474,3419.1,3418.3,2.92542]
[1721356392206,2.92474,3419.1,3418.2,7.4]
[1721356392207,2.92523,3418.6,3418.2,7.4]
[1721356392419,0.292523,3418.5,3418.2,7.4]
[1721356392627,2.92523,3418.6,3418.2,7.4]
[1721356393191,2.92526,3418.5,3418.2,7.4]
[1721356393611,2.92543,3418.3,3418.2,7.4]
[1721356393817,2.92553,3418.2,3417.5,7.4]
[1721356394031,5.19848,3419.0,3417.6,3.0]
[1721356394032,2.92563,3418.1,3417.6,3.0]
[1721356394428,2.92571,3418.0,3417.6,3.0]
[1721356395031,2.92571,3418.0,3417.5,7.4]
[1721356395392,2.92556,3418.2,3417.5,7.4]
[1721356395708,2.92545,3418.3,3417.5,10.32611]
[1721356395918,2.92552,3418.2,3417.5,7.4]
[1721356396311,2.92552,3418.2,3417.6,3.0]
[1721356397603,2.92534,3418.4,3417.6,3.0]
[1721356398206,2.92534,3418.4,3417.6,5.92602]
[1721356398413,2.92517,3418.6,3417.7,2.92593]
[1721356398942,2.92536,3418.4,3417.6,3.0]
[1721356399133,2.92536,3418.4,3417.6,5.92599]
[1721356399849,2.92528,3418.5,3417.6,5.92599]
[1721356400451,5.04219,3418.4,3417.6,5.92599]
[1721356401116,2.92543,3418.3,3417.6,3.0]
[1721356402148,2.11683,3418.4,3417.6,5.926]
[1721356402325,5.04218,3418.4,3417.6,5.926]
[1721356407084,5.04218,3418.4,3417.7,2.92593]
[1721356408323,2.11683,3418.4,3417.7,2.92593]
[1721356412164,5.04218,3418.4,3417.6,3.0]
[1721356414104,2.92552,3418.2,3417.6,3.0]
[1721356414263,5.04218,3418.4,3417.6,3.0]
[1721356414594,2.11683,3418.4,3417.7,2.92593]
[1721356414786,2.11683,3418.4,3418.1,2.9256]
[1721356420473,2.11683,3418.4,3417.9,2.92577]
[1721356421359,2.11683,3418.4,3417.8,3.47585]
[1721356421672,4.42653,3418.4,3417.8,2.92585]
[1721356422503,2.92543,3418.3,3417.5,7.4]
[1721356422800,2.92553,3418.2,3417.5,10.32611]
[1721356423865,0.442653,3418.3,3417.5,7.4]
[1721356424069,7.3519,3418.4,3417.5,7.4]
[1721356424768,2.11683,3418.4,3417.7,5.36264]
[1721356425402,2.11683,3418.4,3418.1,2.92554]
[1721356426318,2.11683,3418.4,3418.3,2.92543]
[1721356436605,2.11683,3418.4,3418.2,2.92551]
[1721356439320,2.11683,3418.4,3418.0,2.92567]
[1721356440097,2.11683,3418.4,3418.1,2.92559]
[1721356440290,4.37033,3418.4,3417.9,2.92571]
[1721356440499,5.41933,3418.4,3417.9,2.92571]
[1721356441188,4.37033,3418.4,3417.9,2.92571]
[1721356441383,4.37033,3418.4,3418.0,2.92566]
[1721356441593,2.11683,3418.4,3418.1,2.92559]
[1721356444083,2.11683,3418.4,3418.3,2.92543]
[1721356453541,2.11683,3418.4,3418.1,5.8511]
[1721356453726,2.11683,3418.4,3418.2,2.92551]
[1721356458954,2.11683,3418.4,3418.3,2.92543]
[1721356463631,2.11683,3418.4,3418.1,2.92554]
[1721356463974,1.049,3418.3,3417.5,7.4]
[1721356464146,2.4343,3418.0,3417.5,7.4]
[1721356468952,2.4343,3418.0,3417.4,2.92619]
[1721356471457,1.049,3417.7,3417.1,7.4]
[1721356471652,4.615847,3417.7,3417.1,7.4]
[1721356473183,3.566847,3417.7,3417.1,7.4]
[1721356473956,4.615847,3417.7,3417.1,7.4]
[1721356475190,4.615847,3417.7,3416.9,2.92657]
[1721356475354,3.97477,3417.9,3416.9,1.049]
[1721356475689,3.97477,3417.9,3417.1,2.92645]
[1721356476140,2.92577,3417.9,3417.1,3.97545]
[1721356478180,2.92548,3418.3,3417.4,2.3066]
[1721356478382,2.92551,3418.2,3417.5,2.92603]
[1721356479142,0.748571,3418.3,3417.5,2.92603]
[1721356479704,3.674011,3418.3,3417.5,2.92603]
[1721356479845,1.049,3418.2,3417.5,2.92603]
[1721356480390,2.2698571,3418.2,3417.5,2.92603]
[1721356480597,5.1953771,3418.2,3417.5,2.92603]
[1721356483655,2.2698571,3418.2,3417.5,2.92603]
[1721356484079,1.049,3418.2,3417.5,2.92603]
[1721356491111,1.049,3418.2,3417.6,2.92602]
[1721356491308,5.60923,3418.4,3417.6,2.92602]
[1721356492101,2.11683,3418.4,3417.5,1.049]
[1721356492380,2.11683,3418.4,3417.9,2.92576]
[1721356492801,2.11683,3418.4,3417.7,2.92588]
[1721356493109,3.16583,3418.4,3417.7,2.92588]
[1721356493629,1.049,3418.2,3417.7,2.92588]
[1721356494329,4.298738,3418.4,3417.7,2.92588]
[1721356497908,2.11683,3418.4,3417.7,2.92588]
[1721356498109,2.11683,3418.4,3417.8,2.92585]
[1721356500037,2.11683,3418.4,3418.0,2.4902]
[1721356504738,2.11683,3418.4,3417.7,5.29314]
[1721356505451,2.11683,3418.4,3417.8,2.92584]
[1721356506652,4.298739,3418.4,3417.7,2.3672]
[1721356506834,7.224089,3418.4,3417.7,2.3672]
[1721356507039,7.224089,3418.4,3417.7,5.29313]
[1721356507350,7.224089,3418.4,3417.7,2.92593]
[1721356507654,7.224089,3418.4,3417.2,7.4]
[1721356507655,1.049,3417.8,3417.3,2.92625]
[1721356510328,3.97471,3418.0,3417.3,2.92625]
[1721356510860,1.049,3417.8,3417.3,2.92625]
[1721356511520,1.049,3417.8,3417.2,7.4]
[1721356512057,1.049,3417.8,3417.2,10.32636]
[1721356512290,3.97471,3418.0,3417.2,10.32636]
[1721356514335,4.97773289,3418.0,3417.2,10.32636]
[1721356516280,3.97471,3418.0,3417.2,10.32636]
[1721356517650,2.92551,3418.2,3417.2,11.37536]
[1721356517851,2.92551,3418.2,3417.4,1.049]
[1721356518047,3.1300089,3418.3,3417.7,2.92588]
[1721356518048,2.4076,3418.3,3417.7,2.92588]
[1721356518255,2.11683,3418.4,3417.7,2.92588]
[1721356518453,5.04218,3418.4,3417.7,2.92588]
[1721356521945,5.04218,3418.4,3417.6,1.049]
[1721356522146,7.40454782,3418.4,3417.5,5.92171]
[1721356522344,2.3925,3417.9,3417.2,7.4]
[1721356522549,2.92596,3417.7,3417.2,7.4]
[1721356523599,1.049,3417.8,3417.2,7.4]
[1721356523803,2.92586,3417.8,3417.2,7.4]
[1721356524008,2.92596,3417.7,3417.2,7.4]
[1721356525600,4.904167,3417.8,3417.2,7.4]
[1721356526294,3.855167,3417.8,3417.2,7.4]
[1721356527710,2.92594,3417.7,3417.2,7.4]
[1721356528509,2.92594,3417.7,3417.0,2.92652]
[1721356539111,2.92586,3417.8,3417.1,3.97544]
[1721356540400,2.3925,3417.9,3417.2,2.92636]
[1721356540801,5.31827,3417.9,3417.2,2.92636]
[1721356543031,2.3925,3417.9,3417.2,2.92636]
[1721356543246,2.92569,3418.0,3417.3,2.2658]
[1721356543803,5.25814,3418.2,3417.3,3.3148]
[1721356545035,2.3326,3418.2,3417.5,2.92611]
[1721356545743,5.25812,3418.2,3417.5,2.92611]
[1721356548208,3.97462,3418.1,3417.3,2.92621]
[1721356548560,3.97462,3418.1,3417.2,7.4]
[1721356548561,3.97485,3417.9,3417.2,7.4]
[1721356548860,3.97485,3417.9,3417.2,10.32637]
[1721356550308,2.92585,3417.9,3417.2,10.32637]
[1721356550911,3.9746,3418.1,3417.4,2.3087]
[1721356551252,2.9256,3418.1,3417.4,5.23489]
[1721356551566,4.43310119,3418.3,3417.5,2.9261]
[1721356552639,4.43310119,3418.3,3417.2,7.4]
[1721356552640,3.5195,3417.9,3417.2,7.4]
[1721356553246,1.049,3417.7,3417.2,7.4]
[1721356555014,2.92604,3417.6,3417.2,7.4]
[1721356555214,2.92604,3417.6,3416.9,5.40271]
[1721356555515,2.92604,3417.6,3417.0,3.0]
[1721356556152,3.97512,3417.5,3416.9,2.4761]
[1721356556646,0.937142,3417.6,3416.8,2.92668]
[1721356558127,0.937142,3417.6,3416.9,2.92662]
[1721356558333,3.97499,3417.7,3416.9,2.92662]
[1721356558818,2.92604,3417.6,3416.9,2.92662]
[1721356559024,1.049,3417.7,3416.7,7.4]
[1721356559663,2.92612,3417.5,3416.8,2.92671]
[1721356559961,2.4243,3417.4,3416.8,2.92671]
[1721356561739,5.35055,3417.4,3416.7,7.4]
[1721356561965,1.049,3417.3,3416.7,7.4]
[1721356562130,1.049,3416.9,3416.4,7.4]
[1721356562330,1.049,3416.9,3416.3,2.3771]
[1721356562544,1.049,3416.9,3416.3,5.3771]
[1721356562752,4.76739522,3417.6,3416.0,7.4]
[1721356562753,2.92692,3416.6,3416.0,7.4]
[1721356563252,8.14429,3416.8,3416.0,7.4]
[1721356563571,2.9268,3416.7,3416.0,7.4]
[1721356564029,2.9268,3416.7,3416.1,3.0]
[1721356564424,5.21751,3416.8,3416.1,3.0]
[1721356564938,2.9268,3416.7,3416.1,3.0]
[1721356565272,2.9268,3416.7,3416.0,10.32738]
[1721356565560,3.60755514,3416.7,3416.0,10.32738]
[1721356565762,2.9268,3416.7,3416.0,10.32738]
[1721356567144,2.9268,3416.7,3416.0,2.92738]
[1721356568864,3.9758,3416.7,3416.0,2.92738]
[1721356569066,1.049,3416.5,3415.8,2.92755]
[1721356569372,1.049,3416.5,3415.7,7.4]
[1721356569373,1.049,3415.9,3415.7,7.4]
[1721356569529,2.4338,3416.0,3415.4,2.92791]
[1721356570272,2.4338,3416.0,3415.1,22.64815]
[1721356570273,3.97654,3415.9,3415.1,2.92815]
[1721356570771,2.92754,3415.9,3415.1,2.92815]
[1721356571325,5.36127,3416.0,3415.2,2.92808]
[1721356571565,2.4338,3416.0,3415.4,2.9279]
[1721356571768,2.254,3416.4,3415.6,1.049]
[1721356571956,2.254,3416.4,3415.7,2.92759]
[1721356572157,2.254,3416.4,3415.6,1.049]
[1721356572483,2.254,3416.7,3416.0,1.049]
[1721356572630,2.772072,3416.7,3416.0,1.049]
[1721356572826,5.698892,3416.7,3416.0,1.049]
[1721356573031,2.772072,3416.7,3416.1,2.92731]
[1721356573257,2.92665,3416.9,3416.0,3.97639]
[1721356573851,2.92665,3416.9,3416.1,2.9273]
[1721356574039,2.92676,3416.8,3416.0,3.97639]
[1721356574368,2.92676,3416.8,3416.0,2.92739]
[1721356574971,3.88509961,3416.8,3416.0,2.92739]
[1721356576378,2.4183,3416.7,3415.8,2.92755]
[1721356576746,2.4183,3416.7,3415.4,12.8071]
[1721356576747,2.92733,3416.1,3415.4,12.8071]
[1721356577073,5.40573,3416.1,3415.4,10.3279]
[1721356577958,2.92717,3416.3,3415.5,2.92775]
[1721356578151,5.40561,3416.5,3415.6,2.92767]
[1721356578344,5.40558,3416.5,3415.7,2.9276]
[1721356578870,5.81702172,3416.5,3415.7,2.9276]
[1721356579436,5.81702172,3416.5,3415.5,2.9278]
[1721356579437,2.92706,3416.4,3415.5,2.9278]
[1721356579641,2.92706,3416.4,3415.6,2.92774]
[1721356580063,2.92723,3416.2,3415.4,7.4]
[1721356580367,2.92706,3416.4,3415.6,2.92773]
[1721356580541,2.89004172,3416.5,3415.4,10.32786]
[1721356580958,2.92729,3416.2,3415.4,10.32786]
[1721356581551,2.92707,3416.4,3415.7,2.92764]
[1721356581756,5.40557,3416.5,3415.8,2.92756]
[1721356582403,2.4786,3416.5,3415.9,2.92748]
[1721356583240,2.4786,3416.5,3415.7,5.4246]
[1721356583545,2.4786,3416.5,3415.8,2.92755]
[1721356589280,5.40557,3416.5,3415.8,2.92755]
[1721356594205,2.3445,3416.1,3415.4,10.32785]
[1721356594392,2.92749,3415.9,3415.4,7.4]
[1721356594595,2.92749,3415.9,3415.1,3.0]
[1721356594596,2.92749,3415.9,3415.3,2.92799]
[1721356594784,2.92749,3415.9,3415.4,3.0]
[1721356595188,2.92749,3415.9,3415.0,10.32823]
[1721356595885,5.27186,3416.1,3415.2,2.92801]
[1721356596112,5.27186,3416.1,3415.3,2.92794]
[1721356596313,5.27186,3416.1,3415.3,3.97894]
[1721356596486,2.3445,3416.1,3415.5,3.9788]
[1721356596687,5.35908,3416.4,3415.6,2.92772]
[1721356597421,2.92716,3416.3,3415.6,2.92772]
[1721356598433,2.92723,3416.2,3415.5,1.051]
[1721356598611,2.3105,3416.0,3415.2,2.92805]
[1721356598812,2.92749,3415.9,3415.2,2.92805]
[1721356600325,2.92749,3415.9,3415.3,1.051]
[1721356601714,2.3105,3416.0,3415.3,3.97899]
[1721356602019,2.3105,3416.0,3415.4,2.9279]
[1721356602421,2.3105,3416.0,3415.5,1.051]
[1721356602634,5.23791,3416.0,3415.3,1.051]
[1721356602923,5.23791,3416.0,3415.3,3.97899]
[1721356603168,2.3105,3416.0,3415.4,2.92791]
[1721356604905,2.3067,3416.3,3415.6,3.97872]
[1721356606150,2.3067,3416.3,3415.8,1.051]
[1721356606337,3.38597549,3416.4,3415.8,1.051]
[1721356609214,0.45890549,3416.4,3415.8,1.051]
[1721356610034,0.45890549,3416.4,3415.7,5.33275]
[1721356610243,3.38596549,3416.4,3415.7,5.33275]
[1721356610401,4.35652804,3416.4,3415.7,2.92765]
[1721356610602,2.92714,3416.3,3415.6,3.97873]
[1721356614409,2.3695,3416.2,3415.6,2.92773]
[1721356616633,5.29673,3416.2,3415.6,2.92773]
[1721356616837,2.3695,3416.2,3415.6,2.92773]
[1721356618868,5.29674,3416.2,3415.6,2.92773]
[1721356620392,2.3695,3416.2,3415.6,2.92773]
[1721356620682,5.29673,3416.2,3415.6,2.92773]
[1721356621691,2.3695,3416.2,3415.6,2.92773]
[1721356622373,2.3695,3416.2,3415.6,3.97873]
[1721356624102,5.29672,3416.2,3415.6,3.97873]
[1721356625406,2.92757,3415.8,3415.1,6.54028963]
[1721356625583,2.3318,3415.7,3415.1,3.54028963]
[1721356626769,5.25925,3416.0,3415.2,3.97908]
[1721356626969,5.25925,3416.0,3415.3,2.92799]
[1721356627180,2.3318,3415.9,3415.1,1.051]
[1721356627380,2.92774,3415.7,3415.0,7.4]
[1721356627702,2.92757,3415.8,3415.1,3.97915]
[1721356628068,2.92766,3415.7,3415.1,3.97915]
[1721356629505,5.25934,3415.9,3415.1,3.97915]
[1721356629708,2.9276,3415.8,3415.1,3.97915]
[1721356630208,2.92766,3415.7,3415.1,3.97915]
[1721356631407,2.92766,3415.7,3415.0,7.4]
[1721356631605,2.4086,3415.6,3415.0,7.4]
[1721356632204,2.92801,3415.3,3415.0,7.4]
[1721356632537,2.92809,3415.2,3415.0,7.4]
[1721356632695,2.92809,3415.2,3414.6,4.051]
[1721356637954,5.34039,3415.2,3414.6,4.051]
[1721356640047,5.34039,3415.2,3414.6,1.051]
[1721356640557,5.34039,3415.2,3414.5,2.92865]
[1721356641333,2.92827,3415.0,3414.4,8.451]
[1721356641860,2.3105,3415.0,3414.4,7.4]
[1721356642423,2.92848,3414.8,3414.4,7.4]
[1721356642624,2.92857,3414.7,3414.4,7.4]
[1721356642854,3.745319,3414.7,3414.4,7.4]
[1721356644559,2.92842,3414.9,3414.1,2.92901]
[1721356644768,2.3105,3415.0,3414.4,2.92871]
[1721356645093,2.92795,3415.4,3414.6,1.051]
[1721356645374,2.92795,3415.4,3414.5,2.2614]
[1721356645375,2.92795,3415.4,3414.8,1.051]